fUST/lending_fUST_20250617
["ID","MTS","AMOUNT","RATE_DAILY","PERIOD"]
[366166557,1750097439134,-460.0,0.00022191,4]
[366166559,1750097439144,-471.73,0.00022191,4]
[366166561,1750097439154,-460.0,0.00022191,4]
[366166563,1750097439166,-651.67,0.00022191,4]
[366166565,1750097439175,-460.0,0.00022191,4]
[366166567,1750097439185,-460.0,0.00022191,4]
[366166569,1750097439194,-366.9046431,0.00022191,4]
[366166571,1750097439204,-460.0,0.00022191,4]
[366166573,1750097439214,-460.0,0.00022191,4]
[366166575,1750097439223,-460.0,0.00022191,4]
[366166577,1750097439233,-460.0,0.00022191,4]
[366166579,1750097439243,-460.0,0.00022191,4]
[366166581,1750097439252,-420.0,0.00022191,4]
[366166583,1750097439262,-460.0,0.00022191,4]
[366166585,1750097439271,-1054.71,0.00022191,4]
[366166587,1750097439281,-460.0,0.00022191,4]
[366166589,1750097439291,-460.0,0.00022191,4]
[366166591,1750097439300,-668.82,0.00022191,4]
[366166593,1750097439309,-628.21,0.00022191,4]
[366166595,1750097439319,-460.0,0.00022191,4]
[366166597,1750097439329,-460.0,0.00022191,4]
[366166599,1750097439339,-908.99,0.00022191,4]
[366166601,1750097439349,-460.0,0.00022191,4]
[366166603,1750097439358,-1031.38245891,0.00022239,2]
[366166605,1750097439368,-1688.0,0.00022239,2]
[366166607,1750097439379,-151.0,0.00022239,2]
[366166609,1750097439388,-152.20402766,0.00022239,2]
[366166611,1750097439399,-151.0,0.00022239,2]
[366166613,1750097439408,-500.0,0.00022239,2]
[366166615,1750097439417,-500.0,0.00022239,2]
[366166617,1750097439427,-207.4,0.00022239,2]
[366166619,1750097439436,-500.0,0.00022239,2]
[366166621,1750097439446,-500.0,0.00022239,2]
[366166623,1750097439456,-5000.0,0.00022239,2]
[366166625,1750097439465,-500.0,0.00022239,2]
[366166627,1750097439475,-500.0,0.00022239,2]
[366166629,1750097439485,-500.0,0.00022239,2]
[366166631,1750097439495,-500.0,0.00022239,2]
[366166633,1750097439505,-500.0,0.00022239,2]
[366166635,1750097439516,-500.0,0.00022239,2]
[366166637,1750097439529,-500.0,0.00022239,2]
[366166639,1750097439538,-500.0,0.00022239,2]
[366166641,1750097439548,-500.0,0.00022239,2]
[366166643,1750097439558,-500.0,0.00022239,2]
[366166645,1750097439568,-500.0,0.00022239,2]
[366166647,1750097439577,-500.0,0.00022239,2]
[366166649,1750097439587,-500.0,0.00022239,2]
[366166651,1750097439598,-500.0,0.00022239,2]
[366166653,1750097439608,-500.0,0.00022239,2]
[366166655,1750097439618,-500.0,0.00022239,2]
[366166657,1750097439627,-500.0,0.00022239,2]
[366166659,1750097439637,-500.0,0.00022239,2]
[366166661,1750097439647,-500.0,0.00022239,2]
[366166663,1750097439657,-500.0,0.00022239,2]
[366166665,1750097439667,-500.0,0.00022239,2]
[366166667,1750097439677,-500.0,0.00022239,2]
[366166669,1750097439687,-500.0,0.00022239,2]
[366166671,1750097439696,-500.0,0.00022239,2]
[366166673,1750097439706,-500.0,0.00022239,2]
[366166675,1750097439715,-500.0,0.00022239,2]
[366166677,1750097439725,-210.8812712,0.00022239,2]
[366166680,1750097439735,-168.0,0.00022243,2]
[366166682,1750097439745,-1750.45600006,0.00022294,2]
[366166684,1750097439754,-356.0,0.00022307,5]
[366166686,1750097439764,-1000.0,0.00022464,2]
[366166688,1750097439773,-353.15,0.00022464,4]
[366166690,1750097439783,-460.0,0.00022464,4]
[366166692,1750097439792,-460.0,0.00022464,4]
[366166693,1750097439801,-460.0,0.00022464,4]
[366166695,1750097439811,-460.0,0.00022464,4]
[366166697,1750097439820,-994.39,0.00022464,4]
[366166699,1750097439830,-460.0,0.00022464,4]
[366166701,1750097439840,-460.0,0.00022465,4]
[366166703,1750097439850,-592.1,0.00022465,4]
[366166705,1750097439860,-460.0,0.00022465,4]
[366166707,1750097439870,-471.73,0.00022465,4]
[366166709,1750097439880,-651.67,0.00022465,4]
[366166711,1750097439890,-460.0,0.00022465,4]
[366166713,1750097439900,-460.0,0.00022465,4]
[366166715,1750097439910,-257.78299186,0.00022465,4]
[366166718,1750097439920,-460.0,0.00022465,4]
[366166720,1750097439931,-460.0,0.00022465,4]
[366166722,1750097439941,-460.0,0.00022465,4]
[366166724,1750097439950,-460.0,0.00022465,4]
[366166726,1750097439960,-1054.71,0.00022465,4]
[366166728,1750097439970,-460.0,0.00022465,4]
[366166730,1750097439980,-668.82,0.00022465,4]
[366166731,1750097439989,-628.21,0.00022465,4]
[366166734,1750097439999,-460.0,0.00022465,4]
[366166735,1750097440009,-908.99,0.00022465,4]
[366166738,1750097440019,-460.0,0.00022465,4]
[366166740,1750097440029,-636.39,0.00022588,10]
[366166742,1750097440039,-356.0,0.00022595,6]
[366166744,1750097440048,-1000.0,0.00022598,2]
[366166747,1750097440058,-420.7207632,0.00022603,2]
[366166749,1750097440068,-158.9308009,0.00022603,2]
[366166751,1750097440079,-177.073212,0.00022603,2]
[366166753,1750097440089,-573.9994554,0.00022603,2]
[366166755,1750097440099,-177.073212,0.00022603,2]
[366166757,1750097440109,-158.9308009,0.00022603,2]
[366166759,1750097440119,-346.9248725,0.00022603,2]
[366166761,1750097440129,-573.9994554,0.00022603,2]
[366166763,1750097440139,-460.0,0.00022738,4]
[366166765,1750097440150,-460.0,0.00022738,4]
[366166767,1750097440159,-460.0,0.00022738,4]
[366166769,1750097440170,-460.0,0.00022738,4]
[366166771,1750097440179,-994.39,0.00022738,4]
[366166773,1750097440189,-460.0,0.00022738,4]
[366166775,1750097440199,-4713.55163423,0.00022739,2]
[366166777,1750097440208,-8844.84063309,0.00022739,2]
[366166779,1750097440218,-460.0,0.00022739,4]
[366166781,1750097440228,-592.1,0.00022739,4]
[366166783,1750097440238,-460.0,0.00022739,4]
[366166785,1750097440248,-471.73,0.00022739,4]
[366166787,1750097440258,-651.67,0.00022739,4]
[366166789,1750097440268,-460.0,0.00022739,4]
[366166791,1750097440279,-460.0,0.00022739,4]
[366166793,1750097440288,-460.0,0.00022739,4]
[366166795,1750097440298,-310.83150042,0.00022739,4]
[366166797,1750097440308,-460.0,0.00022739,4]
[366166799,1750097440317,-1054.71,0.00022739,4]
[366166801,1750097440327,-460.0,0.00022739,4]
[366166803,1750097440336,-668.82,0.00022739,4]
[366166804,1750097440347,-628.21,0.00022739,4]
[366166806,1750097440356,-908.99,0.00022739,4]
[366166808,1750097440366,-360.0,0.00022739,4]
[366166810,1750097440380,-276.23075332,0.00022762,2]
[366166812,1750097440389,-163.75,0.00022777,3]
[366166814,1750097440399,-491.28,0.00022777,3]
[366166816,1750097440408,-5000.0,0.00022787,2]
[366166818,1750097440419,-2715.14,0.00022836,2]
[366166820,1750097440428,-356.0,0.00022883,6]
[366166822,1750097440438,-160.4321496,0.00023,2]
[366166824,1750097440447,-200.0,0.00023,2]
[366166826,1750097440457,-1000.0,0.00023012,2]
[366166828,1750097440466,-460.0,0.00023012,4]
[366166830,1750097440476,-527.97437383,0.00023012,4]
[366166832,1750097440485,-460.0,0.00023012,4]
[366166834,1750097440495,-460.0,0.00023012,4]
[366166836,1750097440505,-994.39,0.00023012,4]
[366166838,1750097440514,-460.0,0.00023012,4]
[366166840,1750097440524,-460.0,0.00023013,4]
[366166842,1750097440537,-592.1,0.00023013,4]
[366166844,1750097440547,-460.0,0.00023013,4]
[366166846,1750097440557,-471.73,0.00023013,4]
[366166848,1750097440567,-651.67,0.00023013,4]
[366166850,1750097440577,-460.0,0.00023013,4]
[366166852,1750097440586,-460.0,0.00023013,4]
[366166854,1750097440596,-460.0,0.00023013,4]
[366166856,1750097440607,-363.74,0.00023013,4]
[366166858,1750097440616,-1054.71,0.00023013,4]
[366166860,1750097440626,-397.76,0.00023013,4]
[366166862,1750097440636,-668.82,0.00023013,4]
[366166864,1750097440646,-628.21,0.00023013,4]
[366166866,1750097440656,-908.99,0.00023013,4]
[366166868,1750097440665,-168.0,0.00023057,2]
[366166884,1750097440813,-168.0,0.0002308,2]
[366166886,1750097440825,-150.0,0.000231,2]
[366166888,1750097440834,-500.0,0.00023146,2]
[366166890,1750097440844,-356.0,0.00023171,6]
[366166892,1750097440854,-853.57,0.000232,2]
[366166894,1750097440864,-168.0,0.00023254,2]
[366166896,1750097440873,-453.47,0.00023278,3]
[366166898,1750097440883,-607.36,0.00023286,2]
[366166900,1750097440892,-460.0,0.00023286,4]
[366166902,1750097440902,-460.0,0.00023286,4]
[366166904,1750097440912,-460.0,0.00023286,4]
[366166906,1750097440922,-994.39,0.00023286,4]
[366166908,1750097440932,-460.0,0.00023286,4]
[366166910,1750097440941,-460.0,0.00023287,4]
[366166912,1750097440951,-592.1,0.00023287,4]
[366166913,1750097440962,-460.0,0.00023287,4]
[366166915,1750097440972,-471.73,0.00023287,4]
[366166917,1750097440982,-651.67,0.00023287,4]
[366166919,1750097440991,-460.0,0.00023287,4]
[366166921,1750097441001,-460.0,0.00023287,4]
[366166923,1750097441011,-460.0,0.00023287,4]
[366166925,1750097441020,-1054.71,0.00023287,4]
[366166927,1750097441030,-668.82,0.00023287,4]
[366166929,1750097441041,-628.21,0.00023287,4]
[366166931,1750097441050,-908.99,0.00023287,4]
[366166933,1750097441059,-500.0,0.00023288,2]
[366166935,1750097441070,-500.0,0.00023288,2]
[366166936,1750097441079,-500.0,0.00023288,2]
[366166937,1750097441089,-500.0,0.00023288,2]
[366166938,1750097441100,-500.0,0.00023288,2]
[366166939,1750097441110,-500.0,0.00023288,2]
[366166940,1750097441120,-500.0,0.00023288,2]
[366166941,1750097441129,-500.0,0.00023288,2]
[366166942,1750097441138,-517.44459876,0.00023288,2]
[366166943,1750097441149,-500.0,0.00023288,2]
[366166944,1750097441159,-500.0,0.00023288,2]
[366166945,1750097441169,-500.0,0.00023288,2]
[366166946,1750097441179,-500.0,0.00023288,2]
[366166947,1750097441189,-500.0,0.00023288,2]
[366166948,1750097441199,-500.0,0.00023288,2]
[366166949,1750097441207,-5000.0,0.00023335,2]
[366166950,1750097441217,-276.23075332,0.00023385,2]
[366166951,1750097441227,-486.17,0.00023415,3]
[366166952,1750097441237,-243.09,0.00023415,3]
[366166953,1750097441247,-729.27,0.00023415,3]
[366166954,1750097441256,-5888.0,0.00023425,2]
[366166955,1750097441265,-177.073212,0.00023425,2]
[366166956,1750097441275,-158.9308009,0.00023425,2]
[366166957,1750097441284,-573.9994554,0.00023425,2]
[366166958,1750097441293,-177.073212,0.00023425,2]
[366166959,1750097441303,-155.7768023,0.00023425,2]
[366166960,1750097441312,-573.9994554,0.00023425,2]
[366166961,1750097441322,-177.073212,0.00023425,2]
[366166962,1750097441331,-573.9994554,0.00023425,2]
[366166963,1750097441342,-177.073212,0.00023425,2]
[366166964,1750097441354,-573.9994554,0.00023425,2]
[366166965,1750097441364,-177.073212,0.00023425,2]
[366166966,1750097441373,-573.9994554,0.00023425,2]
[366166967,1750097441383,-937.6396044,0.00023425,2]
[366166968,1750097441393,-177.073212,0.00023425,2]
[366166969,1750097441402,-177.073212,0.00023425,2]
[366166970,1750097441411,-151.66546,0.00023425,7]
[366166971,1750097441421,-293.178687,0.00023425,7]
[366166972,1750097441430,-151.0,0.00023425,7]
[366166974,1750097441439,-151.0,0.00023425,7]
[366166976,1750097441449,-407.07311728,0.00023456,2]
[366166978,1750097441459,-356.0,0.00023459,6]
[366166980,1750097441468,-500.0,0.00023476,2]
[366166982,1750097441477,-500.0,0.00023476,2]
[366166984,1750097441488,-500.0,0.00023476,2]
[366166986,1750097441498,-439.2094577,0.00023477,2]
[366166988,1750097441507,-972.34,0.0002354,3]
[366166990,1750097441517,-168.0,0.00023547,2]
[366166992,1750097441528,-256.32,0.0002355,3]
[366166994,1750097441539,-460.0,0.0002356,4]
[366166996,1750097441549,-460.0,0.0002356,4]
[366166998,1750097441559,-460.0,0.0002356,4]
[366167000,1750097441568,-994.39,0.0002356,4]
[366167001,1750097441579,-460.0,0.0002356,4]
[366167004,1750097441588,-460.0,0.00023561,4]
[366167005,1750097441598,-592.1,0.00023561,4]
[366167007,1750097441611,-460.0,0.00023561,4]
[366167009,1750097441622,-471.73,0.00023561,4]
[366167011,1750097441631,-651.67,0.00023561,4]
[366167013,1750097441641,-408.2559645,0.00023561,4]
[366167015,1750097441651,-460.0,0.00023561,4]
[366167017,1750097441660,-460.0,0.00023561,4]
[366167019,1750097441670,-1054.71,0.00023561,4]
[366167021,1750097441680,-668.82,0.00023561,4]
[366167023,1750097441689,-628.21,0.00023561,4]
[366167025,1750097441700,-908.99,0.00023561,4]
[366167028,1750097441710,-439.2094578,0.00023604,2]
[366167030,1750097441720,-964.0,0.00023608,2]
[366167032,1750097441730,-2160.0,0.00023608,2]
[366167034,1750097441740,-653.0,0.00023608,2]
[366167035,1750097441750,-406.0,0.00023608,2]
[366167037,1750097441760,-215.0738,0.00023608,2]
[366167039,1750097441769,-158.66118946,0.00023616,2]
[366167041,1750097441780,-188.27130948,0.00023656,2]
[366167043,1750097441791,-501.8668994,0.00023723,2]
[366167045,1750097441800,-500.0,0.00023723,2]
[366167047,1750097441810,-500.0,0.00023723,2]
[366167049,1750097441820,-170.05818164,0.00023723,2]
[366167051,1750097441831,-500.0,0.00023727,2]
[366167053,1750097441841,-171.87098977,0.00023737,2]
[366167055,1750097441851,-500.0,0.00023737,2]
[366167057,1750097441861,-500.0,0.00023737,2]
[366167059,1750097441870,-501.54253158,0.00023737,2]
[366167060,1750097441880,-500.0,0.00023737,2]
[366167062,1750097441890,-500.0,0.00023737,2]
[366167064,1750097441900,-500.0,0.00023737,2]
[366167066,1750097441911,-636.55493512,0.00023737,2]
[366167068,1750097441921,-500.0,0.00023737,2]
[366167070,1750097441931,-502.19345932,0.00023737,2]
[366167072,1750097441941,-500.0,0.00023737,2]
[366167074,1750097441951,-500.0,0.00023737,2]
[366167076,1750097441961,-600.0,0.00023737,2]
[366167078,1750097441972,-336.9302654,0.00023737,2]
[366167080,1750097441983,-500.0,0.00023737,2]
[366167082,1750097441993,-356.0,0.00023747,7]
[366167084,1750097442004,-500.31929836,0.00023773,2]
[366167086,1750097442014,-12500.0,0.00023774,3]
[366167088,1750097442025,-840.21031928,0.00023774,3]
[366167090,1750097442035,-500.84919256,0.00023778,2]
[366167092,1750097442046,-500.0,0.00023778,2]
[366167094,1750097442057,-500.0,0.00023778,2]
[366167096,1750097442067,-151.0,0.00023782,7]
[366167098,1750097442077,-151.0,0.00023782,7]
[366167100,1750097442091,-12500.0,0.00023782,3]
[366167102,1750097442101,-12500.0,0.00023791,3]
[366167104,1750097442111,-1304.433413,0.00023793,3]
[366167106,1750097442121,-500.0,0.00023799,2]
[366167108,1750097442131,-160.0,0.00023799,2]
[366167110,1750097442141,-9880.57457919,0.000238,3]
[366167112,1750097442150,-12500.0,0.000238,3]
[366167114,1750097442160,-151.0,0.000238,7]
[366167116,1750097442170,-151.0,0.000238,7]
[366167118,1750097442179,-500.0,0.00023821,2]
[366167120,1750097442189,-460.0,0.00023834,4]
[366167122,1750097442198,-460.0,0.00023834,4]
[366167123,1750097442208,-460.0,0.00023834,4]
[366167125,1750097442218,-994.39,0.00023834,4]
[366167127,1750097442227,-460.0,0.00023834,4]
[366167129,1750097442239,-460.0,0.00023835,4]
[366167131,1750097442249,-151.0,0.00023835,7]
[366167133,1750097442259,-152.584539,0.00023835,7]
[366167135,1750097442268,-151.0,0.00023835,7]
[366167137,1750097442278,-151.0,0.00023835,7]
[366167139,1750097442287,-592.1,0.00023835,4]
[366167141,1750097442297,-460.0,0.00023835,4]
[366167143,1750097442307,-471.73,0.00023835,4]
[366167145,1750097442316,-651.67,0.00023835,4]
[366167147,1750097442326,-460.0,0.00023835,4]
[366167149,1750097442335,-460.0,0.00023835,4]
[366167151,1750097442345,-1054.71,0.00023835,4]
[366167153,1750097442354,-668.82,0.00023835,4]
[366167155,1750097442364,-628.21,0.00023835,4]
[366167157,1750097442374,-908.99,0.00023835,4]
[366167159,1750097442383,-151.0,0.00023842,7]
[366167161,1750097442392,-5000.0,0.00023883,2]
[366167163,1750097442403,-358.52019337,0.00023936,2]
[366167165,1750097442413,-17560.55572274,0.00024,5]
[366167166,1750097442422,-26938.78059641,0.00024,4]
[366167168,1750097442431,-276.23075332,0.00024007,2]
[366167170,1750097442440,-500.0,0.0002401,2]
[366167172,1750097442449,-800.0,0.00024019,2]
[366167174,1750097442459,-500.0,0.00024022,2]
[366167176,1750097442469,-500.0,0.00024022,2]
[366167178,1750097442478,-500.0,0.00024024,2]
[366167180,1750097442489,-506.41838957,0.00024024,2]
[366167182,1750097442498,-500.0,0.00024029,2]
[366167184,1750097442508,-268.122783,0.00024029,2]
[366167186,1750097442517,-151.0,0.00024035,7]
[366167188,1750097442527,-3619.071267,0.00024035,2]
[366167190,1750097442538,-3619.071267,0.00024035,2]
[366167192,1750097442547,-151.0,0.00024035,7]
[366167194,1750097442556,-151.0,0.00024035,7]
[366167196,1750097442566,-277.238445,0.00024035,7]
[366167198,1750097442575,-356.0,0.00024036,7]
[366167199,1750097442585,-168.0,0.00024045,2]
[366167201,1750097442596,-500.0,0.0002405,2]
[366167203,1750097442606,-168.0,0.00024058,2]
[366167205,1750097442616,-151.0,0.00024081,2]
[366167207,1750097442626,-1226.5944653,0.00024081,2]
[366167208,1750097442635,-800.0,0.00024089,2]
[366167210,1750097442644,-460.0,0.00024108,4]
[366167212,1750097442653,-460.0,0.00024108,4]
[366167214,1750097442663,-460.0,0.00024108,4]
[366167216,1750097442673,-994.39,0.00024108,4]
[366167218,1750097442682,-460.0,0.00024108,4]
[366167220,1750097442691,-460.0,0.00024109,4]
[366167222,1750097442702,-592.1,0.00024109,4]
[366167224,1750097442711,-460.0,0.00024109,4]
[366167225,1750097442722,-471.73,0.00024109,4]
[366167227,1750097442731,-651.67,0.00024109,4]
[366167229,1750097442741,-460.0,0.00024109,4]
[366167231,1750097442750,-460.0,0.00024109,4]
[366167233,1750097442760,-1054.71,0.00024109,4]
[366167235,1750097442769,-668.82,0.00024109,4]
[366167237,1750097442779,-628.21,0.00024109,4]
[366167239,1750097442788,-908.99,0.00024109,4]
[366167241,1750097442797,-2200.0,0.00024132,2]
[366167243,1750097442809,-151.0,0.00024132,7]
[366167245,1750097442820,-151.0,0.00024132,7]
[366167247,1750097442830,-327.5,0.00024147,3]
[366167249,1750097442839,-317.0,0.0002418,3]
[366167251,1750097442849,-1746.0,0.0002418,3]
[366167253,1750097442859,-200.62640265,0.0002418,3]
[366167255,1750097442869,-317.0,0.0002418,3]
[366167257,1750097442878,-317.0,0.0002418,3]
[366167259,1750097442887,-317.0,0.0002418,3]
[366167260,1750097442896,-317.0,0.0002418,3]
[366167262,1750097442906,-317.0,0.0002418,3]
[366167264,1750097442915,-439.6428673,0.0002418,3]
[366167266,1750097442925,-1746.0,0.0002418,3]
[366167268,1750097442934,-333.93634825,0.0002418,3]
[366167270,1750097442945,-200.0,0.0002427,10]
[366167272,1750097442955,-1000.0,0.00024271,2]
[366167274,1750097442966,-500.0,0.00024275,2]
[366167276,1750097442976,-214.66567055,0.00024279,2]
[366167279,1750097442986,-1000.0,0.00024285,2]
[366167281,1750097442998,-1000.0,0.00024285,2]
[366167284,1750097443008,-1000.0,0.00024285,2]
[366167286,1750097443017,-1000.0,0.00024285,2]
[366167288,1750097443026,-1009.52386993,0.00024285,2]
[366167290,1750097443036,-1000.0,0.00024285,2]
[366167292,1750097443046,-501.65890684,0.00024285,2]
[366167294,1750097443055,-1200.0,0.00024285,2]
[366167296,1750097443065,-1000.0,0.00024285,2]
[366167298,1750097443074,-346.0,0.00024297,2]
[366167300,1750097443084,-11900.09110799,0.000243,7]
[366167302,1750097443093,-229.90125484,0.000243,7]
[366167305,1750097443103,-424.54874296,0.000243,7]
[366167308,1750097443113,-160.0,0.000243,7]
[366167311,1750097443122,-151.0,0.000243,7]
[366167314,1750097443132,-151.0,0.000243,7]
[366167316,1750097443141,-151.0,0.000243,7]
[366167318,1750097443151,-641.0,0.000243,2]
[366167320,1750097443160,-356.0,0.00024324,7]
[366167322,1750097443170,-1000.0,0.00024326,2]
[366167324,1750097443180,-346.0,0.0002434,2]
[366167326,1750097443190,-154.063848,0.00024382,7]
[366167328,1750097443199,-151.0,0.00024382,7]
[366167330,1750097443209,-460.0,0.00024382,4]
[366167332,1750097443218,-460.0,0.00024382,4]
[366167335,1750097443228,-460.0,0.00024382,4]
[366167337,1750097443237,-994.39,0.00024382,4]
[366167339,1750097443247,-460.0,0.00024382,4]
[366167341,1750097443256,-460.0,0.00024383,4]
[366167343,1750097443266,-592.1,0.00024383,4]
[366167345,1750097443275,-460.0,0.00024383,4]
[366167347,1750097443285,-471.73,0.00024383,4]
[366167349,1750097443295,-651.67,0.00024383,4]
[366167351,1750097443304,-460.0,0.00024383,4]
[366167353,1750097443315,-460.0,0.00024383,4]
[366167355,1750097443325,-1054.71,0.00024383,4]
[366167357,1750097443334,-668.82,0.00024383,4]
[366167359,1750097443345,-628.21,0.00024383,4]
[366167361,1750097443354,-908.99,0.00024383,4]
[366167363,1750097443364,-811.52722521,0.0002447,7]
[366167365,1750097443373,-151.0,0.000245,2]
[366167367,1750097443383,-207.926332,0.00024558,7]
[366167369,1750097443392,-346.0,0.00024573,2]
[366167370,1750097443402,-151.0,0.00024576,7]
[366167372,1750097443412,-3619.071267,0.00024576,2]
[366167374,1750097443421,-3619.071267,0.00024576,2]
[366167376,1750097443430,-151.0,0.00024576,7]
[366167378,1750097443440,-151.0,0.00024576,7]
[366167380,1750097443449,-346.0,0.00024582,2]
[366167382,1750097443459,-356.0,0.00024612,7]
[366167384,1750097443468,-276.23075332,0.0002463,2]
[366167386,1750097443478,-552.08,0.0002464,3]
[366167388,1750097443488,-346.0,0.00024644,2]
[366167390,1750097443498,-427.3021607,0.0002465,2]
[366167392,1750097443507,-151.0,0.0002465,7]
[366167394,1750097443517,-151.0,0.0002465,7]
[366167396,1750097443528,-151.0,0.0002465,7]
[366167397,1750097443539,-460.0,0.00024656,4]
[366167399,1750097443549,-460.0,0.00024656,4]
[366167401,1750097443559,-460.0,0.00024656,4]
[366167403,1750097443569,-994.39,0.00024656,4]
[366167405,1750097443582,-460.0,0.00024656,4]
[366167407,1750097443591,-499.93,0.00024657,60]
[366167409,1750097443601,-151.0,0.00024657,7]
[366167411,1750097443613,-156.219526,0.00024657,7]
[366167413,1750097443624,-151.0,0.00024657,7]
[366167415,1750097443633,-460.0,0.00024657,4]
[366167417,1750097443643,-592.1,0.00024657,4]
[366167419,1750097443653,-460.0,0.00024657,4]
[366167421,1750097443662,-471.73,0.00024657,4]
[366167423,1750097443673,-651.67,0.00024657,4]
[366167425,1750097443682,-460.0,0.00024657,4]
[366167427,1750097443692,-460.0,0.00024657,4]
[366167429,1750097443702,-1054.71,0.00024657,4]
[366167444,1750097443824,-668.82,0.00024657,4]
[366167446,1750097443835,-628.21,0.00024657,4]
[366167448,1750097443845,-908.99,0.00024657,4]
[366167450,1750097443855,-1000.0,0.00024658,2]
[366167452,1750097443865,-1000.0,0.00024658,2]
[366167454,1750097443875,-1000.0,0.00024658,2]
[366167456,1750097443884,-1000.0,0.00024658,2]
[366167458,1750097443894,-1000.0,0.00024658,2]
[366167460,1750097443904,-1000.0,0.00024658,2]
[366167462,1750097443914,-1000.0,0.00024658,2]
[366167464,1750097443924,-1000.0,0.00024658,2]
[366167466,1750097443933,-1000.0,0.00024658,2]
[366167468,1750097443942,-1000.0,0.00024658,2]
[366167470,1750097443952,-1000.0,0.00024658,2]
[366167472,1750097443962,-1000.0,0.00024658,2]
[366167474,1750097443972,-380.0,0.00024658,2]
[366167476,1750097443982,-3001.71241896,0.00024658,2]
[366167478,1750097443992,-151.0,0.00024658,7]
[366167480,1750097444002,-3619.071267,0.00024658,2]
[366167482,1750097444011,-3619.071267,0.00024658,2]
[366167484,1750097444021,-151.0,0.00024658,7]
[366167486,1750097444030,-151.0,0.00024658,7]
[366167488,1750097444040,-500.0,0.00024658,2]
[366167490,1750097444050,-168.0,0.00024661,2]
[366167491,1750097444059,-575.88,0.00024679,6]
[366167493,1750097444069,-500.0,0.00024685,2]
[366167495,1750097444078,-346.0,0.00024687,2]
[366167497,1750097444088,-151.0,0.000247,5]
[366167499,1750097444097,-1000.0,0.000247,5]
[366167501,1750097444107,-1000.0,0.000247,2]
[366167503,1750097444117,-500.0,0.00024713,2]
[366167505,1750097444126,-445499.26512119,0.0002473,15]
[366167508,1750097444147,-920.0,0.0002473,15]
[366167511,1750097444170,-1046.52638186,0.0002473,15]
[366173414,1750097598115,369.35566,0.00013699,2]
[366173418,1750097789473,1500.0,0.000244,120]
[366173421,1750097900633,2128.0,0.000244,120]
[366173427,1750098020612,889.49254621,0.00023743,120]
[366174002,1750098631871,-1917.1309082,0.00019194,2]
[366174004,1750098631881,-256.573047,0.00019534,2]
[366174006,1750098631891,-192.664429,0.00019685,2]
[366174007,1750098631911,-300.0,0.00019999,2]
[366174008,1750098631923,-300.0,0.00019999,2]
[366174009,1750098631934,-300.0,0.00019999,2]
[366174010,1750098631944,-1200.0,0.00019999,2]
[366174011,1750098631954,-702.22726533,0.0002,2]
[366174012,1750098631964,-11882.1327046,0.0002,2]
[366174013,1750098631973,-2051.48613709,0.00020071,2]
[366174014,1750098631983,-158.55637207,0.00020133,2]
[366174015,1750098631993,-369.35566,0.00020187,2]